bitfinex/quotes_SOLUSD_20251126
["timestamp","ask_amount","ask_price","bid_price","bid_amount"]
[1764190258287,3.71123713,142.99,142.94,17.48937236]
[1764190258473,3.51123713,142.98,142.95,6.99527424]
[1764190258986,0.65,142.97,142.95,6.99527424]
[1764190259388,2.86123713,142.98,142.95,6.99527424]
[1764190259567,3.51123713,142.98,142.95,6.99527424]
[1764190259762,0.65,142.98,142.95,6.99527424]
[1764190260299,0.2,142.99,142.95,7.68527424]
[1764190260464,0.85,142.99,142.95,7.68527424]
[1764190261602,0.2,142.99,142.95,28.03514375]
[1764190261783,0.85,142.99,142.95,28.03514375]
[1764190262964,0.85,142.99,142.95,25.17390662]
[1764190263160,0.85,142.99,142.95,28.03514375]
[1764190264763,0.85,142.99,142.95,10.54651137]
[1764190265383,0.85,142.99,142.95,7.68527424]
[1764190266183,0.85,142.99,142.95,25.17390662]
[1764190267794,0.85,142.99,142.95,7.68527424]
[1764190268677,0.85,142.99,142.95,25.17390662]
[1764190270090,2.86123713,142.97,142.92,17.008864]
[1764190270298,5.96123713,142.96,142.9,6.66123713]
[1764190270602,7.55728591,142.96,142.9,7.69747466]
[1764190270770,0.66,142.95,142.9,7.69747466]
[1764190271099,3.3,142.99,142.94,28.94308414]
[1764190271476,3.96,142.99,142.95,0.7]
[1764190271879,3.3,142.99,142.95,5.15728591]
[1764190272190,0.2,142.99,142.96,4.45728591]
[1764190272389,0.2,142.99,142.97,4.45728591]
[1764190272591,0.86,142.99,142.95,0.7]
[1764190273093,0.86,142.99,142.96,6.99496362]
[1764190276790,0.68,142.98,142.96,6.99496362]
[1764190277379,0.2,142.99,142.96,6.99496362]
[1764190277598,0.2,142.99,142.97,0.7]
[1764190278886,0.2,142.99,142.96,28.93965859]
[1764190279080,0.2,142.99,142.96,25.18237268]
[1764190280200,3.3,142.99,142.96,25.18237268]
[1764190280400,3.3,142.99,142.96,29.63965859]
[1764190280600,3.3,142.99,142.97,5.15728591]
[1764190280803,3.3,142.99,142.98,6.99398517]
[1764190280978,3.3,142.99,142.98,7.69398517]
[1764190281491,1.8,142.99,142.98,6.99398517]
[1764190283878,0.2,143.0,142.98,6.99398517]
[1764190284084,3.3,143.0,142.98,7.69398517]
[1764190284590,3.3,143.0,142.98,6.99398517]
[1764190285695,3.98,143.0,142.98,6.99398517]
[1764190285888,3.3,143.0,142.98,6.99398517]
[1764190286400,0.2,143.0,142.99,7.69349604]
[1764190286632,0.2,143.0,142.99,12.15078195]
[1764190294406,0.2,143.0,142.99,7.69349604]
[1764190294596,0.2,143.0,142.99,12.15078195]
[1764190296915,1e-08,143.0,142.99,45.52622638]
[1764190297108,0.2,143.03,143.0,8.80994492]
[1764190297306,0.2,143.03,143.02,4.45728591]
[1764190297810,0.2,143.03,143.02,5.15728591]
[1764190298699,0.2,143.03,143.02,12.14931499]
[1764190299694,1e-08,143.03,143.02,37.26812391]
[1764190299902,1e-08,143.03,143.02,37.96732681]
[1764190300102,1e-08,143.05,143.04,16.308864]
[1764190300408,1e-08,143.05,143.04,21.46614991]
[1764190300601,1e-08,143.05,143.04,28.45720136]
[1764190305205,1e-08,143.09,143.08,4.45728591]
[1764190306510,0.67000001,143.09,143.05,3.79]
[1764190306705,0.67000001,143.09,143.07,4.45728591]
[1764190306913,6.99007409,143.06,143.01,6.99224824]
[1764190307113,4.45728591,143.05,143.01,6.99224824]
[1764190307306,5.12728591,143.05,143.01,6.99224824]
[1764190307504,0.67,143.04,143.01,6.99224824]
[1764190309042,0.67,143.04,143.0,24.47501163]
[1764190309333,0.67,143.04,143.0,28.93229754]
[1764190310140,0.67,143.06,143.02,4.45728591]
[1764190310437,0.67,143.05,143.02,4.45728591]
[1764190310641,0.67,143.05,143.01,0.69]
[1764190310642,0.67,143.05,143.01,5.14728591]
[1764190310830,0.67,143.05,143.01,4.45728591]
[1764190311031,0.67,143.05,143.01,5.14728591]
[1764190311237,0.67,143.05,143.01,6.99236322]
[1764190311411,12.1179242,143.05,143.01,6.99236322]
[1764190311835,0.67,143.04,143.01,6.99236322]
[1764190316024,0.95432314,143.07,143.02,0.69]
[1764190316242,0.95432314,143.07,143.03,4.45728591]
[1764190316441,0.67,143.06,143.03,4.45728591]
[1764190316623,0.67,143.06,143.02,5.14728591]
[1764190316953,0.67,143.06,143.01,29.62094414]
[1764190317125,0.67,143.06,143.02,0.69]
[1764190318535,0.67,143.06,143.03,6.99154023]
[1764190320335,0.67,143.06,143.03,7.68154023]
[1764190320538,0.67,143.06,143.03,12.13882614]
[1764190320735,0.67,143.06,143.03,11.44882614]
[1764190320937,0.67,143.06,143.03,6.99154023]
[1764190321653,0.67,143.06,143.03,29.61767673]
[1764190322948,3.1,143.08,143.03,28.92767673]
[1764190323155,1e-08,143.09,143.06,4.45728591]
[1764190323347,1e-08,143.09,143.07,4.45728591]
[1764190324055,1e-08,143.09,143.07,5.14728591]
[1764190324558,1e-08,143.09,143.08,5.14728591]
[1764190324864,1e-08,143.09,143.08,12.13638291]
[1764190328638,1e-08,143.09,143.08,6.989097]
[1764190328840,1e-08,143.09,143.08,11.44638291]
[1764190329037,1e-08,143.09,143.08,12.16638291]
[1764190329447,1e-08,143.09,143.08,11.44638291]
[1764190329834,1e-08,143.09,143.08,12.16638291]
[1764190332627,1e-08,143.09,143.08,10.55433194]
[1764190335500,0.67000001,143.09,143.04,79.67618456]
[1764190335769,3.79955809,143.09,143.05,6.99056274]
[1764190336171,0.67,143.08,143.05,6.99056274]
[1764190338069,3.51523494,143.08,143.05,6.99056274]
[1764190338564,0.28432315,143.09,143.05,6.99056274]
[1764190338565,0.67,143.07,143.05,6.99056274]
[1764190338977,0.67,143.08,143.04,24.46813087]
[1764190339274,0.67,143.08,143.04,25.14813087]
[1764190341954,1e-08,143.09,143.05,3.52523494]
[1764190342473,1e-08,143.09,143.06,0.68]
[1764190343088,0.67000001,143.09,143.04,17.47707942]
[1764190343266,3.51523495,143.09,143.04,21.00231436]
[1764190343574,0.67000001,143.09,143.05,27.31210765]
[1764190343753,1e-08,143.09,143.05,25.14687271]
[1764190343953,1e-08,143.09,143.06,3.52523494]
[1764190344279,1e-08,143.09,143.07,2.84523494]
[1764190344565,1e-08,143.09,143.06,3.52523494]
[1764190345578,1e-08,143.09,143.07,6.98958551]
[1764190347158,1e-08,143.09,143.08,0.68]
[1764190347354,1e-08,143.09,143.08,9.83433194]
[1764190348444,1e-08,143.09,143.08,6.989097]
[1764190348647,1e-08,143.09,143.08,9.83433194]
[1764190351453,1e-08,143.09,143.08,6.989097]
[1764190351655,1e-08,143.09,143.08,9.83433194]
[1764190354207,1e-08,143.09,143.08,16.45956688]
[1764190354358,0.2,143.1,143.08,41.3041357]
[1764190354557,0.2,143.1,143.09,3.52523494]
[1764190355767,0.2,143.1,143.09,10.5138435]
[1764190357054,0.2,143.11,143.09,10.5138435]
[1764190357386,0.2,143.11,143.1,6.62523494]
[1764190357760,0.1,143.14,143.11,0.68]
[1764190357974,0.1,143.14,143.13,2.84523494]
[1764190358504,0.1,143.14,143.13,3.52523494]
[1764190358876,0.1,143.14,143.13,10.51189042]
[1764190359076,0.1,143.15,143.13,10.51189042]
[1764190359272,0.1,143.15,143.14,6.37046988]
[1764190359503,0.1,143.15,143.14,0.68]
[1764190359705,0.1,143.15,143.14,3.52523494]
[1764190360800,0.1,143.15,143.14,26.82026632]
[1764190362280,0.1,143.15,143.14,23.97503138]
[1764190362586,0.1,143.15,143.14,26.82026632]
[1764190364108,0.1,143.15,143.14,26.14026632]
[1764190364309,0.1,143.15,143.14,23.29503138]
[1764190364507,0.1,143.15,143.14,6.98616738]
[1764190364684,0.1,143.15,143.12,17.46675961]
[1764190364685,0.79,143.15,143.13,6.98652166]
[1764190365086,0.79,143.15,143.13,9.8317566]
[1764190365584,0.79,143.15,143.13,2.84523494]
[1764190365785,0.79,143.15,143.11,9.83252551]
[1764190368207,0.79,143.15,143.11,27.30160523]
[1764190368390,0.79,143.15,143.11,9.83252551]
[1764190368585,3.63523494,143.15,143.11,6.98729057]
[1764190368797,2.84523494,143.12,143.06,0.66]
[1764190369115,2.84523494,143.11,143.07,16.308864]
[1764190369413,2.84523494,143.11,143.06,7.64999786]
[1764190369584,0.69,143.1,143.06,7.64999786]
[1764190369788,7.67821192,143.1,143.05,2.84523494]
[1764190370093,2.84523494,143.08,143.02,0.66]
[1764190370408,2.84523494,143.05,142.99,7.6533794]
[1764190370706,2.84523494,143.05,142.99,0.66]
[1764190370906,3.53523494,143.04,142.98,10.07388295]
[1764190371110,2.84523494,143.02,142.95,23.36456696]
[1764190371289,2.84523494,143.02,142.96,0.66]
[1764190371485,0.69,143.01,142.96,0.66]
[1764190371693,3.81955808,143.01,142.96,0.66]
[1764190371887,6.99300699,143.0,142.96,0.66]
[1764190372108,7.68300699,143.0,142.96,0.66]
[1764190372789,0.69,143.0,142.96,0.66]
[1764190372989,0.69,143.0,142.96,7.65495122]
[1764190375211,0.69,143.0,142.96,10.50018616]
[1764190375710,7.27688334,143.01,142.96,10.50018616]
[1764190375711,0.69,143.01,142.97,0.66]
[1764190376088,0.69,143.01,142.97,7.65441078]
[1764190377013,13.62692558,143.03,142.98,0.66]
[1764190377202,10.52692558,143.03,142.98,0.66]
[1764190377396,0.69,143.02,142.98,0.66]
[1764190377598,0.69,143.02,142.97,9.83964572]
[1764190377916,0.69,143.02,142.97,7.65441078]
[1764190378111,10.09169064,143.03,142.98,3.50523494]
[1764190378413,10.09169064,143.03,142.99,2.84523494]
[1764190378414,3.1,143.03,142.99,2.84523494]
[1764190378596,3.79,143.03,142.99,3.50523494]
[1764190379514,3.79,143.03,142.99,0.66]
[1764190379714,0.69,143.02,142.98,3.50523494]
[1764190379899,3.1,143.03,142.99,6.99349604]
[1764190380102,3.79,143.03,142.99,7.65349604]
[1764190380415,6.99068524,143.05,143.0,0.66]
[1764190380613,3.81955808,143.06,143.0,0.66]
[1764190380614,7.96455644,143.06,143.0,0.66]
[1764190380815,7.67860856,143.09,143.03,2.84523494]
[1764190381000,10.77860856,143.09,143.03,2.84523494]
[1764190381316,10.77860856,143.09,142.99,24.47723616]
[1764190381317,2.84523494,143.04,142.98,6.99387159]
[1764190381507,2.84523494,143.04,142.98,7.65387159]
[1764190381714,0.69,143.03,142.98,10.49910653]
[1764190381909,0.69,143.03,143.0,6.99300699]
[1764190382297,0.97432314,143.06,143.01,3.50523494]
[1764190382501,27.08801028,143.08,143.02,2.84523494]
[1764190382721,3.79,143.08,143.02,3.50523494]
[1764190383018,3.53523494,143.07,143.0,23.96187099]
[1764190383201,3.53523494,143.07,143.01,0.66]
[1764190383396,0.69,143.07,143.01,3.50523494]
[1764190383607,0.69,143.07,143.02,0.66]
[1764190384119,7.67996811,143.07,143.02,7.65202908]
[1764190384307,0.69,143.07,143.02,10.49726402]
[1764190384509,0.69,143.06,143.02,10.49726402]
[1764190384705,0.97432314,143.06,143.01,6.99246906]
[1764190385022,2.84523494,143.04,142.99,7.65346958]
[1764190385205,3.53523494,143.05,142.99,7.65346958]
[1764190385408,3.81955808,143.06,143.0,0.66]
[1764190385809,0.69,143.05,143.0,0.66]
[1764190386015,0.69,143.05,143.0,2.84523494]
[1764190386204,3.1,143.06,143.01,3.50523494]
[1764190386729,3.1,143.06,143.01,3.51523494]
[1764190386896,0.68,143.06,143.01,3.51523494]
[1764190387721,0.68,143.06,143.01,19.15409894]
[1764190387932,0.68,143.06,143.02,3.51523494]
[1764190388230,0.96432314,143.08,143.03,9.83677517]
[1764190388400,0.96432314,143.08,143.04,2.84523494]
[1764190388723,0.68,143.07,143.03,10.50677517]
[1764190389104,0.68,143.07,143.03,27.98562576]
[1764190389904,0.28432314,143.08,143.03,27.98562576]
[1764190390111,3.78,143.09,143.04,3.51523494]
[1764190390413,0.68,143.11,143.06,2.84523494]
[1764190390612,0.68,143.11,143.05,0.67]
[1764190390813,3.78,143.12,143.07,2.84523494]
[1764190391213,0.68,143.11,143.07,3.51523494]
[1764190392217,0.68,143.11,143.08,6.989097]
[1764190393510,0.68,143.11,143.07,6.98939388]
[1764190393918,3.1,143.12,143.08,0.67]
[1764190394122,0.96432314,143.12,143.08,7.6586637]
[1764190394324,4.06432314,143.12,143.08,7.6586637]
[1764190394920,3.38432314,143.12,143.08,6.9886637]
[1764190395103,0.72,143.11,143.08,6.9886637]
[1764190400641,3.1,143.12,143.09,0.68]
[1764190400809,1.00432314,143.14,143.1,6.98812019]
[1764190401014,3.08,143.13,143.1,6.98812019]
[1764190401215,0.72,143.13,143.1,6.98812019]
[1764190402507,4.44626908,143.12,143.06,18.15466383]
[1764190402714,4.44626908,143.11,143.07,6.98958551]
[1764190402935,5.16626908,143.12,143.07,6.98958551]
[1764190403320,0.72,143.12,143.07,7.66958551]
[1764190403524,0.72,143.11,143.07,25.1435493]
[1764190404743,4.58843065,143.08,143.01,0.68]
[1764190404913,4.44626908,143.06,143.0,7.67300699]
[1764190405113,7.52626908,143.06,143.0,7.67300699]
[1764190405417,8.24626908,143.06,143.0,7.67300699]
[1764190405816,8.24626908,143.06,143.01,0.68]
[1764190406439,3.08,143.06,143.02,6.99202908]
[1764190406635,0.72,143.05,143.02,6.99202908]
[1764190406838,0.14216157,143.08,143.03,0.68]
[1764190407041,3.36432314,143.08,143.03,0.68]
[1764190407337,25.11880892,143.11,143.03,0.68]
[1764190407338,3.94216157,143.1,143.04,4.44626908]
[1764190407508,8.24626908,143.1,143.03,5.12626908]
[1764190408017,0.72,143.09,143.04,0.68]
[1764190408337,0.72,143.09,143.05,24.46696959]
[1764190408929,4.44626908,143.08,143.05,6.99056274]
[1764190409432,0.72,143.07,143.04,6.9908672]
[1764190409642,5.16626908,143.07,143.04,6.9908672]
[1764190409830,5.16626908,143.07,143.02,6.99202908]
[1764190409831,4.44626908,143.06,143.02,6.99202908]
[1764190410138,5.16626908,143.06,143.02,6.99202908]
[1764190410332,0.72,143.05,143.02,6.99202908]
[1764190410536,20.83584456,143.09,143.03,0.68]
[1764190410537,8.53059222,143.09,143.03,0.68]
[1764190410739,8.24626908,143.09,143.03,5.12626908]
[1764190411318,3.8,143.09,143.04,0.68]
[1764190411520,4.44626908,143.11,143.05,4.44626908]
[1764190411727,3.94216157,143.11,143.06,4.44626908]
[1764190411927,0.72,143.1,143.06,4.44626908]
[1764190412435,3.08,143.11,143.08,4.44626908]
[1764190412742,3.08,143.11,143.09,5.12626908]
[1764190412936,0.72,143.13,143.09,5.12626908]
[1764190413314,3.24216157,143.14,143.09,4.44626908]
[1764190413738,0.72,143.13,143.09,5.12626908]
[1764190413945,0.86216157,143.13,143.09,5.12626908]
[1764190414646,0.86216157,143.13,143.1,6.98812019]
[1764190415125,0.14216157,143.13,143.1,6.98812019]
[1764190415319,1.00432314,143.13,143.1,6.98812019]
[1764190415533,1.00432314,143.13,143.09,7.66845023]
[1764190415733,0.72,143.12,143.09,6.98845023]
[1764190416133,0.28432314,143.13,143.1,0.68]
[1764190416828,3.1,143.14,143.11,11.43390097]
[1764190417026,3.1,143.14,143.11,28.90298069]
[1764190417226,3.1,143.14,143.11,29.58298069]
[1764190418042,3.1,143.14,143.11,28.90298069]
[1764190418428,0.82,143.15,143.11,24.45671161]
[1764190418629,0.1,143.15,143.11,28.90298069]
[1764190418841,0.82,143.15,143.11,29.58298069]
[1764190419034,0.1,143.15,143.12,16.308864]
[1764190419238,0.1,143.15,143.12,21.43513308]
[1764190419442,0.1,143.15,143.13,5.12626908]
[1764190419748,0.82,143.15,143.11,28.90298069]
[1764190419938,0.82,143.15,143.11,24.45671161]
[1764190420332,0.1,143.15,143.14,4.44626908]
[1764190420729,0.1,143.15,143.14,7.66616738]
[1764190421541,0.82,143.15,143.14,6.98616738]
[1764190421787,1.10432314,143.15,143.13,6.98623676]
[1764190421922,0.72,143.14,143.13,6.98623676]
[1764190422127,1.10432314,143.15,143.13,6.98623676]
[1764190422957,0.72,143.14,143.11,24.45603334]
[1764190423133,1.10432314,143.15,143.11,25.13603334]
[1764190423334,1.10432314,143.15,143.11,24.45603334]
[1764190423555,0.72,143.14,143.11,24.45603334]
[1764190425034,0.72,143.14,143.11,6.98763189]
[1764190425356,0.1,143.15,143.12,0.7]
[1764190426033,0.1,143.15,143.12,5.14626908]
[1764190426429,0.1,143.15,143.13,6.98665548]
[1764190431743,0.1,143.15,143.14,0.7]
[1764190432565,0.1,143.15,143.13,7.68665548]
[1764190432859,0.1,143.15,143.13,12.13292456]
[1764190433069,0.1,143.15,143.13,7.68665548]
[1764190433438,0.1,143.15,143.14,0.7]
[1764190434342,0.1,143.15,143.13,6.98665548]
[1764190434548,0.1,143.15,143.13,7.68665548]
[1764190434763,0.1,143.15,143.13,6.98665548]
[1764190435260,0.1,143.15,143.13,11.43292456]
[1764190435443,0.1,143.15,143.13,12.13292456]
[1764190435957,0.1,143.15,143.13,11.43292456]
[1764190436163,0.1,143.15,143.13,7.68665548]
[1764190437061,0.79,143.15,143.13,6.98665548]
[1764190438152,0.79,143.15,143.12,6.98697648]
[1764190438759,0.79,143.15,143.11,25.15614173]
[1764190438957,0.79,143.15,143.11,29.60241081]
[1764190439155,0.1,143.15,143.12,0.7]
[1764190439458,0.38432314,143.15,143.12,0.7]
[1764190441261,0.38432314,143.15,143.13,6.98665548]
[1764190442161,1.07432314,143.15,143.13,6.98665548]
[1764190442870,0.38432314,143.15,143.13,6.98665548]
[1764190443564,9.09426806,143.13,143.07,0.7]
[1764190443762,5.13626908,143.14,143.04,9.60668328]
[1764190443763,21.44513308,143.14,143.08,4.44626908]
[1764190443967,3.08,143.12,143.07,4.44626908]
[1764190444145,4.73059222,143.13,143.07,4.44626908]
[1764190444348,16.62053714,143.13,143.08,0.7]
[1764190444548,17.31053714,143.13,143.08,0.7]
[1764190445471,17.31053714,143.13,143.09,6.98860856]
[1764190446066,17.31053714,143.13,143.09,7.68860856]
[1764190447072,4.44626908,143.12,143.09,7.68860856]
[1764190447455,17.31053714,143.13,143.09,7.68860856]
[1764190447967,0.95432314,143.12,143.08,24.46172905]
[1764190448157,0.95432314,143.12,143.08,25.15172905]
[1764190448968,5.40059222,143.12,143.08,24.46172905]
[1764190449147,5.40059222,143.12,143.09,0.69]
[1764190449670,5.40059222,143.12,143.09,7.67819766]
[1764190450261,8.90994492,143.15,143.1,0.69]
[1764190450449,0.1,143.15,143.1,0.69]
[1764190450759,0.67,143.14,143.1,0.69]
[1764190451266,4.44626908,143.13,143.09,6.98819766]
[1764190451446,4.44626908,143.12,143.09,6.98819766]
[1764190451648,5.11626908,143.12,143.09,6.98819766]
[1764190451971,0.67,143.12,143.09,6.98819766]
[1764190452273,0.67,143.12,143.09,7.67819766]
[1764190452441,0.67,143.12,143.09,25.14971908]
[1764190452648,0.67,143.12,143.09,24.45971908]
[1764190452949,3.08,143.13,143.1,0.69]
[1764190453662,2.94514568,143.15,143.11,6.98763189]
[1764190453867,3.18,143.15,143.11,6.98763189]
[1764190454079,3.18,143.15,143.12,0.69]
[1764190454457,3.83,143.15,143.11,24.45671161]
[1764190454657,3.83,143.15,143.11,25.13671161]
[1764190455545,3.97216157,143.15,143.11,25.13671161]
[1764190455743,3.97216157,143.15,143.11,7.66763189]
[1764190455950,3.77946882,143.14,143.1,6.98805202]
[1764190456174,0.93432314,143.14,143.1,6.98805202]
[1764190456392,0.65,143.13,143.1,6.98805202]
[1764190456976,4.01432314,143.14,143.1,7.66805202]
[1764190457183,3.36432314,143.14,143.1,7.66805202]
[1764190457689,0.65,143.13,143.1,6.98805202]
[1764190459468,0.28432314,143.09,143.03,0.68]
[1764190459676,0.28432314,143.06,143.03,7.67106996]
[1764190460685,0.28432314,143.06,143.04,0.68]
[1764190460882,0.28432314,143.06,143.03,6.99106996]
[1764190461086,0.28432314,143.06,143.03,7.67106996]
[1764190462780,3.12946882,143.06,143.03,0.68]
[1764190463186,0.28432314,143.06,143.03,0.489]
[1764190463376,0.28432314,143.06,143.03,7.48040253]
[1764190464867,3.12946882,143.06,143.03,7.48040253]
[1764190466188,3.77946882,143.06,143.03,7.48040253]
[1764190467761,0.65,143.09,143.04,0.68]
[1764190467975,5.92514568,143.08,143.04,0.68]
[1764190468563,3.08,143.08,143.04,0.68]
[1764190469283,8.80994492,143.11,143.04,0.68]
[1764190469477,3.08,143.1,143.04,0.68]
[1764190469788,3.08,143.1,143.05,24.46696959]
[1764190470167,3.08,143.1,143.06,0.68]
[1764190470393,3.08,143.11,143.06,0.68]
[1764190470596,3.73,143.11,143.06,3.52514568]
[1764190470795,0.14216157,143.12,143.07,2.84514568]
[1764190470984,3.22216157,143.12,143.07,3.52514568]
[1764190471284,3.08,143.12,143.08,0.68]
[1764190471479,0.1,143.15,143.1,2.84514568]
[1764190471689,3.18,143.15,143.1,2.84514568]
[1764190471897,3.18,143.15,143.11,0.68]
[1764190472098,0.28432314,143.11,143.06,0.68]
[1764190472287,3.12946882,143.11,143.06,0.68]
[1764190472481,3.77946882,143.11,143.06,0.68]
[1764190473409,0.28432314,143.11,143.08,6.989097]
[1764190473578,0.93432314,143.11,143.08,6.989097]
[1764190474694,0.28432314,143.11,143.08,6.989097]
[1764190474899,0.28432314,143.11,143.08,7.669097]
[1764190475488,0.28432314,143.11,143.09,0.68]
[1764190477691,0.28432314,143.11,143.08,6.989097]
[1764190478001,0.28432314,143.11,143.08,7.669097]
[1764190478896,0.28432314,143.11,143.09,0.68]
[1764190479100,0.28432314,143.11,143.08,7.669097]
[1764190479802,0.28432314,143.11,143.09,0.68]
[1764190479987,0.28432314,143.11,143.08,6.989097]
[1764190480185,0.28432314,143.11,143.07,20.31830674]
[1764190480186,0.28432314,143.11,143.06,2.84514568]
[1764190480378,0.28432314,143.11,142.92,34.58961134]
[1764190480379,3.12946882,143.07,143.02,7.6720261]
[1764190480578,6.20946882,143.07,143.02,7.6720261]
[1764190480779,3.12946882,143.05,143.0,7.67293184]
[1764190480979,2.84514568,143.04,143.0,7.67293184]
[1764190481182,3.49514568,143.04,143.0,7.67293184]
[1764190481491,0.65,143.04,143.0,7.67293184]
[1764190483309,3.49514568,143.04,143.0,7.67293184]
[1764190484304,3.49514568,143.04,143.01,0.67]
[1764190484699,3.36432314,143.05,143.01,0.67]
[1764190484893,6.86946882,143.05,143.01,0.67]
[1764190485093,2.84514568,143.04,143.01,0.67]
[1764190485302,6.86946882,143.05,143.01,0.67]
[1764190485601,6.20946882,143.05,143.01,0.67]
[1764190485801,6.86946882,143.05,143.02,6.99202908]
[1764190486103,0.66,143.04,143.02,6.99202908]
[1764190486806,3.50514568,143.04,143.02,6.99202908]
[1764190487483,3.50514568,143.03,143.01,6.99248991]
[1764190487719,3.50514568,143.03,142.98,18.35427745]
[1764190487720,2.84514568,143.03,143.0,0.67]
[1764190488316,2.84514568,143.04,143.0,0.67]
[1764190488485,3.50514568,143.04,143.0,0.67]
[1764190489681,3.50514568,143.04,143.01,6.992518]
[1764190490700,3.50514568,143.04,143.01,7.662518]
[1764190492501,3.50514568,143.04,143.0,0.67]
[1764190492810,2.84514568,143.03,143.0,0.67]
[1764190493703,2.84514568,143.03,143.01,6.992518]
[1764190494211,2.84514568,143.03,143.01,7.662518]
[1764190494408,2.84514568,143.03,143.01,6.992518]
[1764190494633,0.28432314,143.01,142.98,7.1938077]
[1764190494915,2.84514568,143.0,142.98,0.2]
[1764190495299,3.50514568,143.0,142.98,7.19393939]
[1764190495498,6.22946882,143.01,142.98,7.19393939]
[1764190495699,6.88946882,143.01,142.98,7.19393939]
[1764190497221,3.38432314,143.03,142.99,0.67]
[1764190497511,2.84514568,143.06,143.0,2.84514568]
[1764190497688,5.94514568,143.06,143.0,2.84514568]
[1764190497888,5.94514568,143.06,143.01,0.67]
[1764190498190,6.60514568,143.06,143.02,6.99202908]
[1764190498391,13.59522577,143.06,143.02,6.99202908]
[1764190498604,13.59522577,143.06,143.02,7.66202908]
[1764190499215,3.1,143.06,143.02,6.99202908]
[1764190499407,2.84514568,143.08,143.03,0.67]
[1764190499605,5.94514568,143.09,143.03,3.51514568]
[1764190499805,3.1,143.09,143.04,0.67]
[1764190500009,3.1,143.09,143.05,24.46696959]
[1764190500212,8.80994492,143.12,143.05,24.46696959]
[1764190500411,2.84514568,143.13,143.06,16.978864]
[1764190500587,2.84514568,143.1,143.06,16.978864]
[1764190500988,3.1,143.12,143.06,16.978864]
[1764190500989,3.76,143.12,143.07,0.67]
[1764190501292,11.6550906,143.14,143.07,0.67]
[1764190501494,2.84514568,143.1,143.06,16.308864]
[1764190501713,8.80994492,143.12,143.06,16.978864]
[1764190501714,0.28432314,143.11,143.06,16.978864]
[1764190501895,0.28432314,143.11,143.07,0.67]
[1764190501896,0.66,143.11,143.07,0.67]
[1764190502095,0.66,143.11,143.08,6.989097]
[1764190502312,3.78946882,143.11,143.08,6.989097]
[1764190502490,0.80216157,143.11,143.08,6.989097]
[1764190503013,0.94432314,143.11,143.08,6.989097]
[1764190503215,3.78946882,143.11,143.08,6.989097]
[1764190504200,17.068864,143.15,143.09,0.67]
[1764190504405,8.80994492,143.14,143.09,0.67]
[1764190504612,2.84514568,143.12,143.07,25.1335493]
[1764190505125,3.50514568,143.12,143.08,0.67]
[1764190505525,0.28432314,143.13,143.08,0.67]
[1764190505897,0.14216157,143.13,143.08,0.67]
[1764190506113,0.28432314,143.13,143.08,0.67]
[1764190506308,0.28432314,143.13,143.09,24.46012998]
[1764190506723,0.1,143.15,143.11,2.84514568]
[1764190507018,0.1,143.15,143.12,16.308864]
[1764190507400,0.1,143.15,143.13,0.66]
[1764190507599,3.66514568,143.15,143.1,0.66]
[1764190507806,3.66514568,143.15,143.11,0.66]
[1764190508200,3.66514568,143.15,143.11,6.98763189]
[1764190508626,2.94514568,143.15,143.11,6.98763189]
[1764190508802,0.72,143.14,143.11,6.98763189]
[1764190509013,0.72,143.14,143.11,24.45671161]
[1764190509207,2.94514568,143.15,143.11,24.45671161]
[1764190509390,0.72,143.14,143.11,24.28671161]
[1764190510220,0.1,143.15,143.11,24.28671161]
[1764190510518,3.66514568,143.15,143.11,24.94671161]
[1764190510915,0.72,143.14,143.11,24.28671161]
[1764190512717,0.1,143.15,143.11,24.28671161]
[1764190512921,0.82,143.15,143.11,24.94671161]
[1764190513514,0.82,143.15,143.12,0.66]
[1764190513515,0.1,143.15,143.12,0.66]
[1764190513721,0.82,143.15,143.11,24.94671161]